Cogmind - Beta 13 @@@ ROGUE MODE // 2024.05.27 @ 18:06:24 Player: Ragemodebzrk Result: Destroyed by G-34 Mercenary with Small Laser Performance ------------- Evolutions (1) 500 Regions Visited (3) 600 Robots Destroyed (37) 185 Value Destroyed (912) 912 Prototype IDs (2) 40 Alien Tech Used (0) 0 Bonus (0) 0 TOTAL SCORE: 2237 Bonus ------- None Cogmind --------- Core Integrity 0/400 Matter 285/300 Energy 263/265 System Corruption 2% Temperature Cool (37) Movement Walking (120) Location -9/Storage Parts ------- > --- POWER (2) -------- Improved Ion Engine > --- PROPULSION (2) --- Aluminum Leg Aluminum Leg > --- UTILITY (3) ------ Heat Sink Utility Shielding > --- WEAPON (2) ------- Beam Rifle > --- INVENTORY (5) ---- Grenade Launcher Peak State ------------ > --- POWER ------------ Improved Ion Engine > --- PROPULSION ------- Improved Hover Unit Improved Hover Unit > --- UTILITY ---------- Small Storage Unit Improved Targeting Computer > --- WEAPON ----------- Particle Gun Particle Gun > --- INVENTORY -------- Wheel Compact Wheel Terrain Scan Processor Medium Laser Small Laser [Rating: 13] Favorites ----------- Power Improved Ion Engine Engine Improved Ion Engine Propulsion Flight Unit Leg Aluminum Leg Wheel Wheel Hover Unit Improved Hover Unit Flight Unit Flight Unit Utility Improved Targeting Computer Device Heat Sink Storage Small Storage Unit Processor Improved Targeting Computer Protection Core Shielding Weapon EM Pulse Gun Energy Gun EM Pulse Gun Ballistic Gun Heavy Assault Rifle Launcher Grenade Launcher Build | -11 -10 -9 -9 ------- Run | Yrd Mat Mat Sto Slots Evolved 2 | . . 2 . Power 1 | . . 1 . Propulsion . | . . . . Utility 1 | . . 1 . Weapon . | . . . . Parts Attached 41 | 6 17 11 7 Power 8 | 1 2 3 2 Engine 8 | 1 2 3 2 Core . | . . . . Reactor . | . . . . Propulsion 13 | 2 7 2 2 Treads . | . . . . Leg 4 | . . 2 2 Wheel 2 | 2 . . . Hover 4 | . 4 . . Flight 3 | . 3 . . Utility 6 | 1 2 2 1 Device 1 | . . 1 . Storage 1 | 1 . . . Processor 1 | . 1 . . Hackware . | . . . . Protection 3 | . 1 1 1 Artifact . | . . . . Weapon 14 | 2 6 4 2 Energy Gun 12 | 2 6 2 2 Energy Cannon . | . . . . Ballistic Gun 1 | . . 1 . Ballistic Cannon . | . . . . Launcher 1 | . . 1 . Special Weapon . | . . . . Impact Weapon . | . . . . Slashing Weapon . | . . . . Piercing Weapon . | . . . . Special Melee Weapon . | . . . . Unidentified Prototypes . | . . . . Parts Lost 20 | . 3 9 8 Power 5 | . . 2 3 Propulsion 6 | . 3 2 1 Utility 3 | . . 1 2 Weapon 6 | . . 4 2 Highest Loss Streak 5 | . 2 3 5 To Critical Strikes 2 | . 1 1 . Average Slot Usage (%) 88 | . 97 74 86 Engine 12 | . 14 7 15 Leg 5 | . . 3 21 Hover 6 | . 14 . . Flight 8 | . 9 12 . Device 2 | . . . 11 Storage 3 | . 7 . . Processor 9 | . 14 8 . Protection 13 | . 6 22 18 Energy Gun 19 | . 28 15 6 Ballistic Gun 2 | . . 3 8 Launcher 1 | . . 2 4 Naked Turns . | . . . . Heaviest Build 19 | 13 18 19 19 Greatest Support 26 | 26 26 10 20 Greatest Overweight (x) 5 | 1 5 2 1 Average Overweight (x) . | . . . . Largest Inventory Capacity 8 | 8 8 5 5 Average Capacity 5 | 6 6 5 5 Most Carried 6 | 5 6 4 3 Average Carried 2 | 1 3 2 1 Final Capacity 8 | 8 5 5 5 Final Carried 4 | . 4 1 1 Class Distribution -------------------- 78% | Mutant 21% | Scavenger-Mutant Dominant Class ---------------- Mutant | -10/Materials Mutant | -9/Materials Scavenger-Mutant | -9/Storage Resources | -11 -10 -9 -9 ----------- Run | Yrd Mat Mat Sto Matter Collected 675 | 231 178 149 117 Remotely . | . . . . Salvage Created 1108 | . 390 426 292 Parts 75 | . 34 25 16 Haulers Intercepted . | . . . . Recyclers Shooed . | . . . . Parts Field Recycled . | . . . . Retrieved Matter . | . . . . Parts Self-Destructed . | . . . . Prevented . | . . . . Kills | -11 -10 -9 -9 ------- Run | Yrd Mat Mat Sto Combat Hostiles Destroyed 31 | . 13 12 6 Guns 25 | . 12 7 6 AOE 6 | . 1 5 . Classes Destroyed 7 | . 4 2 1 Worker 1 | . . 1 . Tunneler 1 | . 1 . . Operator 1 | . . . 1 Watcher 3 | . 2 1 . Swarmer 12 | . 8 4 . Grunt 15 | . 5 6 4 Sentry 4 | . . 2 2 Best Kill Streak 6 | . 5 6 4 Combat Bots Only 6 | . 5 6 4 Max Kills in Single Turn 2 | . 2 2 1 Gunslinging 1 | . 1 . . Exploded 2 | . 1 2 . Melee . | . . . . Uniques/NPCs Destroyed . | . . . . Combat | -11 -10 -9 -9 -------- Run | Yrd Mat Mat Sto Hostile Shots Fired 211 | . 63 80 68 Missed 48 | . 11 24 13 Damage Taken 1840 | . 476 653 711 Core 589 | . 186 205 198 Absorbed by Shields . | . . . . Redirected to Shielding 103 | . 2 67 34 Core Remaining (%) 62 | 100 25 . . Volleys Fired 110 | . 32 45 33 Largest 2 | . 2 2 2 Hottest 130 | . 130 90 63 Shots Fired 188 | . 63 73 52 Gun 180 | . 63 69 48 Cannon . | . . . . Launcher 8 | . . 4 4 Special . | . . . . Kinetic 28 | . . 9 19 Thermal 104 | . 31 44 29 Explosive 8 | . . 4 4 Electromagnetic 48 | . 32 16 . Robot Hit Streak 8 | . 7 7 8 Robot Miss Streak 9 | . 9 5 2 Penetration Max . | . . . . Secondary Targets 5 | . 4 . 1 Max Gunslinging Chain 1 | . 1 . 1 Shots Hit Robots 107 | . 28 42 37 Core Hits 55 | . 19 22 14 Critical Kills . | . . . . Critical Parts Destroyed 1 | . . . 1 Critical Strikes 2 | . . . 2 Burn 1 | . . . 1 Destroy 1 | . . . 1 Melee Attacks . | . . . . Impact . | . . . . Slashing . | . . . . Piercing . | . . . . Sneak Attacks . | . . . . Combat Hostiles . | . . . . Follow-up Attacks . | . . . . Damage Inflicted 2012 | . 540 885 587 Guns 1500 | . 446 500 554 Cannons . | . . . . Explosions 507 | . 89 385 33 Melee . | . . . . Ramming 5 | . 5 . . Kinetic 302 | . . 42 260 Thermal 1084 | . 332 458 294 Explosive 283 | . . 250 33 Electromagnetic 338 | . 203 135 . Impact . | . . . . Slashing . | . . . . Piercing . | . . . . Highest Corruption 2 | . 1 . 2 Average Corruption 1 | . 1 . 2 Corruption Purged . | . . . . Corruption Blocked . | . . . . Overload Shots . | . . . . Overflow Damage . | . . . . Projectiles . | . . . . Explosions . | . . . . Melee . | . . . . Knockbacks . | . . . . Impact . | . . . . Kinetic . | . . . . Secondary . | . . . . Self-Inflicted Damage 2 | . 2 . . Shots . | . . . . Rammed 3 | . 2 1 . Targets Rammed 3 | . 2 1 . Kicked . | . . . . Crushed . | . . . . Highest Temperature 581 | . 581 291 43 Average Temperature 114 | . 142 98 17 Received Heat Transfer 606 | . 48 282 276 Effects 8 | . 8 . . Shutdowns 2 | . 2 . . Energy Bleed 1 | . 1 . . Interference 2 | . 2 . . Damage (minor) 2 | . 2 . . Damage (core) 1 | . 1 . . Siege Activations . | . . . . Robots Corrupted . | . . . . Combat Hostiles . | . . . . Parts Fried . | . . . . Impact Corruptions . | . . . . Robots Melted . | . . . . Combat Hostiles . | . . . . Parts Melted 1 | . . 1 . Heat Transferred 2465 | . 693 991 781 Parts Sabotaged . | . . . . Parts Stolen . | . . . . Parts Stripped . | . . . . Power Chain Reactions 3 | . 2 1 . Alert | -11 -10 -9 -9 ------- Run | Yrd Mat Mat Sto Peak Influence 357 | . 293 357 277 Initial 150 | . . 77 150 Average 142 | . 117 175 175 Maximum Alert Level 1 | . 1 1 1 Low Security (%) 77 | 100 88 59 73 Level 1 22 | . 11 40 26 Level 2 . | . . . . Level 3 . | . . . . Level 4 . | . . . . Level 5 . | . . . . High Security . | . . . . Max Security . | . . . . Squads Dispatched 6 | . 2 2 2 Investigation 6 | . 2 2 2 Extermination . | . . . . Reinforcement . | . . . . Assault . | . . . . Garrison . | . . . . Intercept . | . . . . Searches Triggered . | . . . . Construction Impeded . | . . . . Haulers Reinforced . | . . . . Active Scanning Responses . | . . . . Cargo Convoy Interrupts . | . . . . Stealth | -11 -10 -9 -9 --------- Run | Yrd Mat Mat Sto Distress Signals . | . . . . Communications Jammed . | . . . . Distress Signals . | . . . . Times Spotted 46 | . 19 17 10 Peak Tracking Total 6 | . 5 6 4 Tactical Retreats 2 | . 1 1 . Traps | -11 -10 -9 -9 ------- Run | Yrd Mat Mat Sto Traps Triggered 3 | . 2 . 1 Indirectly . | . . . . Trap Hack Attempts . | . . . . Triggered . | . . . . Disarmed . | . . . . Reprogrammed . | . . . . Reused . | . . . . Traps Extracted . | . . . . Installed . | . . . . Triggered . | . . . . Machines | -11 -10 -9 -9 ---------- Run | Yrd Mat Mat Sto Machines Disabled 3 | . 1 2 . Max in Single Turn 1 | . 1 1 . Machines Repaired . | . . . . Machines Dismantled . | . . . . Machines Sabotaged . | . . . . Overloaded Fab Kills . | . . . . Hacking | -11 -10 -9 -9 --------- Run | Yrd Mat Mat Sto Machines Accessed 10 | . 3 3 4 Terminals 9 | . 3 3 3 Fabricators . | . . . . Repair Stations 1 | . . . 1 Recycling Units . | . . . . Scanalyzers . | . . . . Garrison Access . | . . . . Total Hacks 40 | . 16 14 10 Successful 20 | . 11 5 4 Failed 20 | . 5 9 6 Catastrophic 6 | . 1 1 4 Database Lockouts . | . . . . Manual . | . . . . Terminals 38 | . 16 14 8 Fabricators . | . . . . Repair Stations 2 | . . . 2 Recycling Units . | . . . . Scanalyzers . | . . . . Garrison Access . | . . . . Terminal Hacks 20 | . 11 5 4 Record 2 | . 2 . . Prototype ID Bank 1 | . 1 . . Branch Access Points 1 | . . 1 . Emergency Access Points 2 | . . 2 . Alert Level 4 | . 2 1 1 Unreport Threat 2 | . . 1 1 Locate Traps 1 | . . . 1 Dispatch Records 1 | . 1 . . Maintenance Status 1 | . 1 . . Surveillance Status 1 | . 1 . . Hauler Manifests 1 | . 1 . . Registered Components 1 | . 1 . . Zone Layout 2 | . 1 . 1 Fabricator Hacks . | . . . . Repair Station Hacks . | . . . . Recycling Unit Hacks . | . . . . Scanalyzer . | . . . . Garrison Access Hacks . | . . . . Unauthorized Hacks . | . . . . Terminals . | . . . . Fabricators . | . . . . Repair Stations . | . . . . Recycling Units . | . . . . Scanalyzers . | . . . . Garrison Access . | . . . . Data Cores Recovered . | . . . . Used . | . . . . Hacking Detections 10 | . 3 3 4 Full Trace Events 8 | . 3 2 3 Feedback Events 1 | . 1 . . Corruption 1 | . 1 . . Feedback Blocked . | . . . . Robot Schematics Acquired . | . . . . Robots Built . | . . . . Authchips . | . . . . Time . | . . . . Total Robot Build Rating . | . . . . Part Schematics Acquired . | . . . . Parts Built . | . . . . Authchips . | . . . . Time . | . . . . Total Part Build Rating . | . . . . Parts Repaired . | . . . . Time . | . . . . Parts Recycled . | . . . . Recycled Matter . | . . . . Retrieved Matter . | . . . . Retrieved Components . | . . . . Parts Scanalyzed . | . . . . Part Schematics Acquired . | . . . . Parts Damaged . | . . . . Bothacking | -11 -10 -9 -9 ------------ Run | Yrd Mat Mat Sto Used RIF Installer . | . . . . Robots Hacked . | . . . . Non-combat . | . . . . Combat . | . . . . Robot Hacks Applied . | . . . . Relay Couplers Released . | . . . . Fabnet Peak Effective % . | . . . . Robots Rewired . | . . . . Allies Hacked . | . . . . Hacks Repelled . | . . . . Allies | -11 -10 -9 -9 -------- Run | Yrd Mat Mat Sto Total Allies . | . . . . Largest Group . | . . . . Highest-Rated Group . | . . . . Highest-Rated Ally . | . . . . Total Orders . | . . . . Ally Attacks . | . . . . Total Damage . | . . . . Kills . | . . . . Allies Corrupted . | . . . . Allies Melted . | . . . . Intel | -11 -10 -9 -9 ------- Run | Yrd Mat Mat Sto Robot Analysis Total . | . . . . Derelict Logs Recovered . | . . . . Drone Launches . | . . . . Drone Recoveries . | . . . . Exploration | -11 -10 -9 -9 ------------- Run | Yrd Mat Mat Sto Turns Passed 1229 | 39 574 353 263 Spaces Moved 757 | 37 406 213 101 Core 24 | 16 3 5 . Treads . | . . . . Legs 146 | . . 45 101 Wheels 47 | 21 26 . . Hover 201 | . 201 . . Flight 339 | . 176 163 . Fastest Speed 37 | 50 37 37 120 Average Speed 108 | 75 102 100 160 Slowest Speed 300 | 100 300 190 190 Overloaded Moves . | . . . . Propulsion Burnouts . | . . . . Robots Hopped . | . . . . Cave-ins Triggered . | . . . . Exploration Rate (%) 31 | 3 80 21 20 Regions Visited 3 Branch Regions 1 Pre-discovered Areas . | . . . . Known Exits Taken 1 | . . 1 . Unknown Exits Taken 2 | 1 1 . . Scrap Searched . | . . . . Spaces Dug . | . . . . Terrain Destroyed 53 | . 5 19 29 Melee . | . . . . Projectile . | . . . . AOE 53 | . 5 19 29 Terrain Rammed . | . . . . Walls Destroyed . | . . . . Machines Disabled . | . . . . Actions | -11 -10 -9 -9 --------- Run | Yrd Mat Mat Sto Total 976 | 47 501 279 149 Wait 14 | . 9 2 3 Move 754 | 36 405 212 101 Hop . | . . . . Pick Up 40 | 5 22 8 5 Fast Attach 1 | 1 . . . Attach 28 | 5 7 11 5 Detach . | . . . . Swap 12 | . 10 . 2 Drop 14 | . 14 . . Fire 110 | . 32 45 33 Melee . | . . . . Ram 3 | . 2 1 . Kick . | . . . . Crush . | . . . . Escape Stasis . | . . . . Rewire . | . . . . Trap . | . . . . Miscellaneous . | . . . . Route ------- -11/Scrapyard -10/Materials (discovered 3 exits: *Mat x2 / [*Min]) -9/Materials (discovered 2 exits: Min / *Sto) -9/Storage History --------- Turn | Location | Event 9 | -11/Scrapyard | Discovered new exit (range 15) 40 | -11/Scrapyard | Entered Materials 209 | -10/Materials | Core integrity fell below 50% 304 | -10/Materials | Build established: Mutant 317 | -10/Materials | Discovered new exit (range 16) 445 | -10/Materials | Discovered new exit (range 6) 609 | -10/Materials | Discovered new exit (range 15) 614 | -10/Materials | Entered another Materials area 614 | -9/Materials | Evolved 2 slots: Power x1, Utility x1 785 | -9/Materials | Lost 3 parts (1p2w) 789 | -9/Materials | Discovered new exit (range 7) 880 | -9/Materials | Lost 3 parts (1p1n1w) 880 | -9/Materials | Identified exit to Mines 880 | -9/Materials | Identified exit to Storage 905 | -9/Materials | Core integrity fell below 50% 967 | -9/Materials | Entered Storage 1120 | -9/Storage | Lost 3 parts (2p1u) 1219 | -9/Storage | Core integrity fell below 20% 1230 | -9/Storage | Destroyed by G-34 Mercenary with Small Laser Last Messages --------------- M-13 Machinist repairs G-34 Mercenary. Propulsion Shielding destroyed. Hvy. Assault Rifle destroyed. Sml. Laser destroyed. G-34 Mercenary destroyed. Acquired 49 matter. K-01 Serf collects debris. Aluminum Leg destroyed. Acquired Ion Engine. K-01 Serf collects debris. U-05 Engineer lays Concrete. U-05 Engineer builds a Wall. K-01 Serf collects debris. U-05 Engineer builds a Wall. K-01 Serf collects debris. K-01 Serf suffers critical hit (Burn). U-05 Engineer lays Concrete. U-05 Engineer builds a Wall. Ion Engine destroyed. U-05 Engineer builds a Wall. Map ----- +----------------------------------------------------+ | ????????????????????????????????????????? | | ????????????????????????????????????????? | | ????????????????????????????????????????? | | ????????????????????????????????????????? | | ????????????????????????????????????????? | | ????????????????????????????????????????? | | ????????????????????????????????????????? | | ????????????????????????????????????????? | | ????????????????????????????????????????? | | ????????????????????????????????????????? | | ???????????? ?????????????????????????? | | ??????????? ?????????????????????????? | | ??????????? ?????????????????????????? | | ??????????? ?????????????????????????? | | ???????????# ^?????????????????????????? | | ???????????# ?????????????????????????? | | ???????????# ?????????#####???????????? | | ???????????# #???????? ##???????????? | | ???????????# #???????? ##???????????? | | ???????????# #???????? ##???????????? | | ???????????# #???????? ##???????????? | | ???????????# #????????#"###???####?#### | | ???????????# #???????? T#???#T"#?#""" | | ???????????# Yg###########+###### "###"T" | | ???????????# a=% | | ???????????# = b@ | | ???????????# ! [ u | | ???????????#####+############# ####+#### | | ??????????????? ??????##==%!!=! # | | ??????????????" ""??????# !== """ T # | | ?????????????"" """?????# ! =! """ # | | ?????????????"" """?????# # """ # | | ???????????? ????# # | | ?????????????#######????## ## ########## | | | | | | | | | | | | | | | | | | | | | | | | | | | | | | | | | +----------------------------------------------------+ Best States ------------- Heat Dissipation 38 Energy Generation 17 Energy Capacity 415 Matter Stores 300 Matter Capacity 300 Sight Range 16 Terrain Scan Density 10 Core Shielding 20 Propulsion Shielding 33 Utility Shielding 33 Evasion (%) 62 Targeting Accuracy 6 Item Schematics ----------------- None Robot Schematics ------------------ None Fabricated ------------ Nothing Alien Tech Used ----------------- None Achievements -------------- None Challenges ------------ None Game ------ Seed SupersonicCompactGreatsword Manual? 0 Play Time 00:22:44 Cumulative 4.2 hours Start 2024.05.27 @ 17:46:46 End 2024.05.27 @ 18:06:24 Sessions 1 Manual Loads 0 Difficulty Rogue Special Mode None Game No. 8 Rogue 8 Adventurer 0 Explorer 0 Win Type - Total 0 Types 0/0/0/0/0/0/0/0/0 Lore% 9 Gallery% 10 Achievement% 8 Wizard Run 0 Options --------- Layout 1 ASCII 0 Keyboard 0 Movement Mouse Keybinds 0 Fullscreen 1 Font 24/Smallcaps Map View 50x35 Zoom Use 0% Tactical HUD 0 Map Filters NONE Filters NONE Steam 1 RUN: 7dc4b773-4efa-4dfa-944c-70452b4ac292